{"text_format":"3","workbook":"xlsx","n_sheets":4,"sheets":["Sākums","Kāzu budžets","Apģērbs-uzņemšana-mūzika-attēli","Dekor.-ziedi-dāvanas-ceļojums"],"not_rendered":{"charts":1,"defined_names":22},"read":"whole","date_system":"1900"}

{"sheet":"Sākums","index":0,"n_rows":7,"n_cols":2,"rows_kept":7}
[null,"PAR ŠO VEIDNI"]
[null,"Izmantojiet šo veidni, lai sekotu līdzi saviem kāzu izdevumiem."]
[null,"Ievadiet prognozētie un faktiskie izmaksas dažādās kategorijās atsevišķās darblapās."]
[null,"Kāzu budžeta kopsavilkums un diagramma tiek automātiski atjaunināti jūsu vietā."]
[null,"Piezīme. "]
[null,"Papildu norādījumi ir sniegti kolonnā A katrā darblapā. Šis teksts ir paslēpts ar nolūku. Lai tekstu noņemtu, atlasiet kolonnu A, pēc tam atlasiet DZĒST. Lai parādītu slēpto tekstu, atlasiet kolonnu A, pēc tam nomainiet fonta krāsu."]
[null,"Lai iegūtu papildinformāciju par tabulām, nospiediet taustiņu SHIFT un pēc tam F10 tabulā, atlasiet opciju TABULA un pēc tam atlasiet ALTERNATĪVAIS TEKSTS."]

{"sheet":"Kāzu budžets","index":1,"n_rows":19,"n_cols":6,"rows_kept":19,"merged":[[2,2,4,5],[18,2,42,5]]}
["Šajā darblapā izveidojiet kāzu budžets. Ievadiet detalizētu informāciju tabulās apģērbs/uzņemšana/mūzika/attēli darblapā un dekorāciju/ziedi/dāvanas/ceļojums darblapā, lai atjauninātu kopsavilkumu un diagrammu pašreizējā darblapā. Šīs kolonnas šūnās ir noderīgi norādījumi par to, kā lietot šo darblapu. Kāzu datums etiķetes ir šūnā C1.",null,"Kāzu datums:"]
["Šūnā C2 ievadiet kāzu datums. Atlikušās dienas tiek automātiski aprēķinātas šūnā E2.",null,{"$f":"TODAY()+365","v":"2019-12-07"},"Atlikušās dienas:",{"$f":"C2-TODAY()","v":365}]
["Šūnā C3 ir šīs darblapas nosaukums. Nākamais norādījums ir šūnā A6.",null,"Kāzu budžeta kopsavilkums"]
[]
[]
["Budžeta kopsavilkums tabula, kas sākas šūnā C6, tiek atjaunināta automātiski. Nākamais norādījums ir šūnā A19.",null,"KATEGORIJA","PROGNOZĒTIE","FAKTISKIE","VIRS/ZEM"]
[null,null,"Apģērbs",{"$f":"Apģērbs_kopā_fakt","v":{"v":9490,"d":"9,490.00"}},{"$f":"Apģērbs_kopā_apl","v":{"v":9770,"d":"9,770.00"}},{"$f":"Budžeta_kopsavilkums[[#This Row],[PROGNOZĒTIE]]-Budžeta_kopsavilkums[[#This Row],[FAKTISKIE]]","v":{"v":-280,"d":"-280.00"}}]
[null,null,"Pieņemšana",{"$f":"Uzņemšana_kopā_apl","v":{"v":1050,"d":"1,050.00"}},{"$f":"Uzņemšana_kopā_fakt","v":{"v":928,"d":"928.00"}},{"$f":"Budžeta_kopsavilkums[[#This Row],[PROGNOZĒTIE]]-Budžeta_kopsavilkums[[#This Row],[FAKTISKIE]]","v":{"v":122,"d":"122.00"}}]
[null,null,"Mūzika",{"$f":"Mūzika_izklaide_kopā_apl","v":{"v":600,"d":"600.00"}},{"$f":"Mūzika_izklaide_kopā_fakt","v":{"v":400,"d":"400.00"}},{"$f":"Budžeta_kopsavilkums[[#This Row],[PROGNOZĒTIE]]-Budžeta_kopsavilkums[[#This Row],[FAKTISKIE]]","v":{"v":200,"d":"200.00"}}]
[null,null,"Drukāšana",{"$f":"Druka__piederumi_kopā_apl","v":{"v":935,"d":"935.00"}},{"$f":"Druka__piederumi_kopā_fakt","v":{"v":870,"d":"870.00"}},{"$f":"Budžeta_kopsavilkums[[#This Row],[PROGNOZĒTIE]]-Budžeta_kopsavilkums[[#This Row],[FAKTISKIE]]","v":{"v":65,"d":"65.00"}}]
[null,null,"Fotografēšana",{"$f":"Foto_kopā_apl","v":{"v":1625,"d":"1,625.00"}},{"$f":"Foto_kopā_fakt","v":{"v":1575,"d":"1,575.00"}},{"$f":"Budžeta_kopsavilkums[[#This Row],[PROGNOZĒTIE]]-Budžeta_kopsavilkums[[#This Row],[FAKTISKIE]]","v":{"v":50,"d":"50.00"}}]
[null,null,"Dekorācijas",{"$f":"Dekorācijas_kopā_apl","v":{"v":700,"d":"700.00"}},{"$f":"Dekorācijas_kopā_fakt","v":{"v":720,"d":"720.00"}},{"$f":"Budžeta_kopsavilkums[[#This Row],[PROGNOZĒTIE]]-Budžeta_kopsavilkums[[#This Row],[FAKTISKIE]]","v":{"v":-20,"d":"-20.00"}}]
[null,null,"Ziedi",{"$f":"Ziedi_kopā_apl","v":{"v":900,"d":"900.00"}},{"$f":"Ziedi_kopā_fakt","v":{"v":850,"d":"850.00"}},{"$f":"Budžeta_kopsavilkums[[#This Row],[PROGNOZĒTIE]]-Budžeta_kopsavilkums[[#This Row],[FAKTISKIE]]","v":{"v":50,"d":"50.00"}}]
[null,null,"Dāvanas",{"$f":"Dāvanas_kopā_apl","v":{"v":1345,"d":"1,345.00"}},{"$f":"Dāvanas_kopā_fakt","v":{"v":1075,"d":"1,075.00"}},{"$f":"Budžeta_kopsavilkums[[#This Row],[PROGNOZĒTIE]]-Budžeta_kopsavilkums[[#This Row],[FAKTISKIE]]","v":{"v":270,"d":"270.00"}}]
[null,null,"Ceļojums",{"$f":"Ceļojums_transports_kopā_apl","v":{"v":100,"d":"100.00"}},{"$f":"Ceļojums_transports_kopā_fakt","v":{"v":165,"d":"165.00"}},{"$f":"Budžeta_kopsavilkums[[#This Row],[PROGNOZĒTIE]]-Budžeta_kopsavilkums[[#This Row],[FAKTISKIE]]","v":{"v":-65,"d":"-65.00"}}]
[null,null,"Cits",{"$f":"Citi_izdevumi_kopā_apl","v":{"v":885,"d":"885.00"}},{"$f":"Citi_izdevumi_kopā_fakt","v":{"v":1021,"d":"1,021.00"}},{"$f":"Budžeta_kopsavilkums[[#This Row],[PROGNOZĒTIE]]-Budžeta_kopsavilkums[[#This Row],[FAKTISKIE]]","v":{"v":-136,"d":"-136.00"}}]
[null,null,"Kopējie izdevumi",{"$f":"SUBTOTAL(109,Budžeta_kopsavilkums[PROGNOZĒTIE])","v":{"v":17630,"d":"17,630.00"}},{"$f":"SUBTOTAL(109,Budžeta_kopsavilkums[FAKTISKIE])","v":{"v":17374,"d":"17,374.00"}},{"$f":"SUBTOTAL(109,Budžeta_kopsavilkums[VIRS/ZEM])","v":{"v":256,"d":"256.00"}}]
[]
["Sektoru diagramma šūnā C19 tiek atjaunināta automātiski.",null,"Šajā šūnā ir sektoru diagramma, kurā parādītas katras kategorijas izmaksas procentos."]

{"sheet":"Apģērbs-uzņemšana-mūzika-attēli","index":2,"n_rows":56,"n_cols":6,"rows_kept":56,"merged":[[16,1,16,4],[28,1,28,4],[29,1,29,4],[35,1,35,4],[48,1,48,4]]}
["Šajā darblapā ievadiet plānotās un faktiskie izmaksas katrai kategorija attiecīgajās tabulās. Līdzekļu deficīts vai pārpalikums tiek aprēķināts automātiski. Apģērbs etiķete ir šūnā pa labi. Šīs kolonnas šūnās ir noderīgi norādījumi par to, kā lietot šo darblapu. Bultiņa uz leju, lai sāktu darbu.","Apģērbs",{"$nulls":3}," "]
[" Ievadiet detalizētu informāciju apģērbs tabulā, sākot no šūnas pa labi. Nākamais norādījums ir šūnā A18.","KATEGORIJA","PROGNOZĒTIE","FAKTISKIE","VIRS/ZEM"," "]
[null,"Saderināšanās gredzens(-i)",{"v":1500,"d":"1,500.00"},{"v":1500,"d":"1,500.00"},{"$f":"'Apģērbs-uzņemšana-mūzika-attēli'!$C3-'Apģērbs-uzņemšana-mūzika-attēli'!$D3","v":{"v":0,"d":"0.00"}}]
[null,"1. topošā laulātā gredzens",{"v":2000,"d":"2,000.00"},{"v":2300,"d":"2,300.00"},{"$f":"'Apģērbs-uzņemšana-mūzika-attēli'!$C4-'Apģērbs-uzņemšana-mūzika-attēli'!$D4","v":{"v":-300,"d":"-300.00 "}}]
[null,"1. topošā laulātā kleita/smokings",{"v":3000,"d":"3,000.00"},{"v":2750,"d":"2,750.00"},{"$f":"'Apģērbs-uzņemšana-mūzika-attēli'!$C5-'Apģērbs-uzņemšana-mūzika-attēli'!$D5","v":{"v":250,"d":"250.00"}}]
[null,"1. topošā laulātā plīvurs/galvassega",{"v":500,"d":"500.00"},{"v":500,"d":"500.00"},{"$f":"'Apģērbs-uzņemšana-mūzika-attēli'!$C6-'Apģērbs-uzņemšana-mūzika-attēli'!$D6","v":{"v":0,"d":"0.00"}}]
[null,"1. topošā laulātā apavi",{"v":350,"d":"350.00"},{"v":300,"d":"300.00"},{"$f":"'Apģērbs-uzņemšana-mūzika-attēli'!$C7-'Apģērbs-uzņemšana-mūzika-attēli'!$D7","v":{"v":50,"d":"50.00"}}]
[null,"1. topošā laulātā rotaslietas",{"v":400,"d":"400.00"},{"v":550,"d":"550.00"},{"$f":"'Apģērbs-uzņemšana-mūzika-attēli'!$C8-'Apģērbs-uzņemšana-mūzika-attēli'!$D8","v":{"v":-150,"d":"-150.00 "}}]
[null,"1. topošā laulātā zeķubikses/zeķes",{"v":20,"d":"20.00"},{"v":20,"d":"20.00"},{"$f":"'Apģērbs-uzņemšana-mūzika-attēli'!$C9-'Apģērbs-uzņemšana-mūzika-attēli'!$D9","v":{"v":0,"d":"0.00"}}]
[null,"2. topošā laulātā gredzens",{"v":300,"d":"300.00"},{"v":250,"d":"250.00"},{"$f":"'Apģērbs-uzņemšana-mūzika-attēli'!$C10-'Apģērbs-uzņemšana-mūzika-attēli'!$D10","v":{"v":50,"d":"50.00"}}]
[null,"2. topošā laulātā kleita/smokings",{"v":300,"d":"300.00"},{"v":350,"d":"350.00"},{"$f":"'Apģērbs-uzņemšana-mūzika-attēli'!$C11-'Apģērbs-uzņemšana-mūzika-attēli'!$D11","v":{"v":-50,"d":"-50.00 "}}]
[null,"2. topošā laulātā plīvurs/galvassega",{"v":500,"d":"500.00"},{"v":500,"d":"500.00"},{"$f":"'Apģērbs-uzņemšana-mūzika-attēli'!$C12-'Apģērbs-uzņemšana-mūzika-attēli'!$D12","v":{"v":0,"d":"0.00"}}]
[null,"2. topošā laulātā apavi",{"v":200,"d":"200.00"},{"v":175,"d":"175.00"},{"$f":"'Apģērbs-uzņemšana-mūzika-attēli'!$C13-'Apģērbs-uzņemšana-mūzika-attēli'!$D13","v":{"v":25,"d":"25.00"}}]
[null,"2. topošā laulātā rotaslietas",{"v":400,"d":"400.00"},{"v":550,"d":"550.00"},{"$f":"'Apģērbs-uzņemšana-mūzika-attēli'!$C14-'Apģērbs-uzņemšana-mūzika-attēli'!$D14","v":{"v":-150,"d":"-150.00 "}}]
[null,"2. topošā laulātā zeķubikses/zeķes",{"v":20,"d":"20.00"},{"v":25,"d":"25.00"},{"$f":"'Apģērbs-uzņemšana-mūzika-attēli'!$C15-'Apģērbs-uzņemšana-mūzika-attēli'!$D15","v":{"v":-5,"d":"-5.00 "}}]
[null,"Apģērbs kopā",{"$f":"SUBTOTAL(109,Apģērbs[PROGNOZĒTIE])","v":{"v":9490,"d":"9,490.00"}},{"$f":"SUBTOTAL(109,Apģērbs[FAKTISKIE])","v":{"v":9770,"d":"9,770.00"}},{"$f":"SUBTOTAL(109,Apģērbs[VIRS/ZEM])","v":{"v":-280,"d":"-280.00 "}}]
[]
["Pieņemšanas etiķete ir šūnā pa labi.","Uzņemšana*"]
["Ievadiet tabulā Uzņemšana izmaksas, izņemot dekorāciju un izklaides izmaksas, sākot no šūnas pa labi. Nākamais norādījums ir šūnā A31.","KATEGORIJA","PROGNOZĒTIE","FAKTISKIE","VIRS/ZEM"]
[null,"Telpas/zāles izmaksas",{"v":200,"d":"200.00"},{"v":150,"d":"150.00"},{"$f":"'Apģērbs-uzņemšana-mūzika-attēli'!$C20-'Apģērbs-uzņemšana-mūzika-attēli'!$D20","v":{"v":50,"d":"50.00"}}]
[null,"Galdi un krēsli",{"v":100,"d":"100.00"},{"v":50,"d":"50.00"},{"$f":"'Apģērbs-uzņemšana-mūzika-attēli'!$C21-'Apģērbs-uzņemšana-mūzika-attēli'!$D21","v":{"v":50,"d":"50.00"}}]
[null,"Pārtika",{"v":0,"d":"0.00"},{"v":0,"d":"0.00"},{"$f":"'Apģērbs-uzņemšana-mūzika-attēli'!$C22-'Apģērbs-uzņemšana-mūzika-attēli'!$D22","v":{"v":0,"d":"0.00"}}]
[null,"Dzērieni",{"v":0,"d":"0.00"},{"v":0,"d":"0.00"},{"$f":"'Apģērbs-uzņemšana-mūzika-attēli'!$C23-'Apģērbs-uzņemšana-mūzika-attēli'!$D23","v":{"v":0,"d":"0.00"}}]
[null,"Galdauti",{"v":0,"d":"0.00"},{"v":0,"d":"0.00"},{"$f":"'Apģērbs-uzņemšana-mūzika-attēli'!$C24-'Apģērbs-uzņemšana-mūzika-attēli'!$D24","v":{"v":0,"d":"0.00"}}]
[null,"Kūka",{"v":700,"d":"700.00"},{"v":700,"d":"700.00"},{"$f":"'Apģērbs-uzņemšana-mūzika-attēli'!$C25-'Apģērbs-uzņemšana-mūzika-attēli'!$D25","v":{"v":0,"d":"0.00"}}]
[null,"Uzkodas",{"v":50,"d":"50.00"},{"v":28,"d":"28.00"},{"$f":"'Apģērbs-uzņemšana-mūzika-attēli'!$C26-'Apģērbs-uzņemšana-mūzika-attēli'!$D26","v":{"v":22,"d":"22.00"}}]
[null,"Personāla atalgojums un pateicības",{"v":0,"d":"0.00"},{"v":0,"d":"0.00"},{"$f":"'Apģērbs-uzņemšana-mūzika-attēli'!$C27-'Apģērbs-uzņemšana-mūzika-attēli'!$D27","v":{"v":0,"d":"0.00"}}]
[null,"Svinības kopā",{"$f":"SUBTOTAL(109,Uzņemšana[PROGNOZĒTIE])","v":{"v":1050,"d":"1,050.00"}},{"$f":"SUBTOTAL(109,Uzņemšana[FAKTISKIE])","v":{"v":928,"d":"928.00"}},{"$f":"SUBTOTAL(109,Uzņemšana[VIRS/ZEM])","v":{"v":122,"d":"122.00"}}]
[null,"* Izņemot izklaidi un dekorācijas"]
[]
["Mūzika vai izklaide etiķete ir šūnā pa labi.","Mūzika/izklaide"]
["Sākot no šūnas pa labi, mūzika tabulā ievadiet detalizētu informāciju. Nākamais norādījums ir šūnā A37.","KATEGORIJA","PROGNOZĒTIE","FAKTISKIE","VIRS/ZEM"]
[null,"Ceremonijas mūziķi",{"v":400,"d":"400.00"},{"v":400,"d":"400.00"},{"$f":"'Apģērbs-uzņemšana-mūzika-attēli'!$C33-'Apģērbs-uzņemšana-mūzika-attēli'!$D33","v":{"v":0,"d":"0.00"}}]
[null,"Grupa/DJ svinībām",{"v":200,"d":"200.00"},{"v":0,"d":"0.00"},{"$f":"'Apģērbs-uzņemšana-mūzika-attēli'!$C34-'Apģērbs-uzņemšana-mūzika-attēli'!$D34","v":{"v":200,"d":"200.00"}}]
[null,"Mūzika/izklaide kopā",{"$f":"SUBTOTAL(109,Mūzika[PROGNOZĒTIE])","v":{"v":600,"d":"600.00"}},{"$f":"SUBTOTAL(109,Mūzika[FAKTISKIE])","v":{"v":400,"d":"400.00"}},{"$f":"SUBTOTAL(109,Mūzika[VIRS/ZEM])","v":{"v":200,"d":"200.00"}}]
[]
["Drukas vai vēstuļpapīrs ir drukāšana pa labi.","Vēstuļpapīrs/drukāšana"]
["Ievadiet detalizētu informāciju drukāšana tabulā, sākot no šūnas pa labi. Nākamais norādījums ir šūnā A50.","KATEGORIJA","PROGNOZĒTIE","FAKTISKIE","VIRS/ZEM"]
[null,"Ielūgumi",{"v":500,"d":"500.00"},{"v":450,"d":"450.00"},{"$f":"'Apģērbs-uzņemšana-mūzika-attēli'!$C39-'Apģērbs-uzņemšana-mūzika-attēli'!$D39","v":{"v":50,"d":"50.00"}}]
[null,"Paziņojumi",{"v":200,"d":"200.00"},{"v":175,"d":"175.00"},{"$f":"'Apģērbs-uzņemšana-mūzika-attēli'!$C40-'Apģērbs-uzņemšana-mūzika-attēli'!$D40","v":{"v":25,"d":"25.00"}}]
[null,"Pateicības kartītes",{"v":100,"d":"100.00"},{"v":100,"d":"100.00"},{"$f":"'Apģērbs-uzņemšana-mūzika-attēli'!$C41-'Apģērbs-uzņemšana-mūzika-attēli'!$D41","v":{"v":0,"d":"0.00"}}]
[null,"Personīgais vēstuļpapīrs",{"v":0,"d":"0.00"},{"v":0,"d":"0.00"},{"$f":"'Apģērbs-uzņemšana-mūzika-attēli'!$C42-'Apģērbs-uzņemšana-mūzika-attēli'!$D42","v":{"v":0,"d":"0.00"}}]
[null,"Viesu grāmata",{"v":25,"d":"25.00"},{"v":25,"d":"25.00"},{"$f":"'Apģērbs-uzņemšana-mūzika-attēli'!$C43-'Apģērbs-uzņemšana-mūzika-attēli'!$D43","v":{"v":0,"d":"0.00"}}]
[null,"Programmiņas",{"v":75,"d":"75.00"},{"v":80,"d":"80.00"},{"$f":"'Apģērbs-uzņemšana-mūzika-attēli'!$C44-'Apģērbs-uzņemšana-mūzika-attēli'!$D44","v":{"v":-5,"d":"-5.00 "}}]
[null,"Pieņemšanas salvetes",{"v":35,"d":"35.00"},{"v":40,"d":"40.00"},{"$f":"'Apģērbs-uzņemšana-mūzika-attēli'!$C45-'Apģērbs-uzņemšana-mūzika-attēli'!$D45","v":{"v":-5,"d":"-5.00 "}}]
[null,"Apdrukāti sērkociņi",{"v":0,"d":"0.00"},{"v":0,"d":"0.00"},{"$f":"'Apģērbs-uzņemšana-mūzika-attēli'!$C46-'Apģērbs-uzņemšana-mūzika-attēli'!$D46","v":{"v":0,"d":"0.00"}}]
[null,"Kaligrāfija",{"v":0,"d":"0.00"},{"v":0,"d":"0.00"},{"$f":"'Apģērbs-uzņemšana-mūzika-attēli'!$C47-'Apģērbs-uzņemšana-mūzika-attēli'!$D47","v":{"v":0,"d":"0.00"}}]
[null,"Vēstuļpapīrs/drukāšana kopā",{"$f":"SUBTOTAL(109,Drukāšana[PROGNOZĒTIE])","v":{"v":935,"d":"935.00"}},{"$f":"SUBTOTAL(109,Drukāšana[FAKTISKIE])","v":{"v":870,"d":"870.00"}},{"$f":"SUBTOTAL(109,Drukāšana[VIRS/ZEM])","v":{"v":65,"d":"65.00"}}]
[]
["Fotografēšana etiķete ir šūnā pa labi.","Fotografēšana"]
["Ievadiet detalizētu informāciju fotografēšana tabulā, sākot no šūnas pa labi.","KATEGORIJA","PROGNOZĒTIE","FAKTISKIE","VIRS/ZEM"]
[null,"Ceremonijas fotogrāfijas",{"v":1300,"d":"1,300.00"},{"v":1300,"d":"1,300.00"},{"$f":"'Apģērbs-uzņemšana-mūzika-attēli'!$C52-'Apģērbs-uzņemšana-mūzika-attēli'!$D52","v":{"v":0,"d":"0.00"}}]
[null,"Papildu kopijas",{"v":25,"d":"25.00"},{"v":25,"d":"25.00"},{"$f":"'Apģērbs-uzņemšana-mūzika-attēli'!$C53-'Apģērbs-uzņemšana-mūzika-attēli'!$D53","v":{"v":0,"d":"0.00"}}]
[null,"Fotoalbumi",{"v":100,"d":"100.00"},{"v":100,"d":"100.00"},{"$f":"'Apģērbs-uzņemšana-mūzika-attēli'!$C54-'Apģērbs-uzņemšana-mūzika-attēli'!$D54","v":{"v":0,"d":"0.00"}}]
[null,"Video uzņemšana",{"v":200,"d":"200.00"},{"v":150,"d":"150.00"},{"$f":"'Apģērbs-uzņemšana-mūzika-attēli'!$C55-'Apģērbs-uzņemšana-mūzika-attēli'!$D55","v":{"v":50,"d":"50.00"}}]
[null,"Fotografēšana kopā",{"$f":"SUBTOTAL(109,Fotografēšana[PROGNOZĒTIE])","v":{"v":1625,"d":"1,625.00"}},{"$f":"SUBTOTAL(109,Fotografēšana[FAKTISKIE])","v":{"v":1575,"d":"1,575.00"}},{"$f":"SUBTOTAL(109,Fotografēšana[VIRS/ZEM])","v":{"v":50,"d":"50.00"}}]

{"sheet":"Dekor.-ziedi-dāvanas-ceļojums","index":3,"n_rows":48,"n_cols":5,"rows_kept":48,"merged":[[8,1,8,4],[9,1,9,4],[18,1,18,4],[27,1,27,4],[34,1,34,4]]}
["Šajā darblapā ievadiet plānotās un faktiskās izmaksas katrai kategorija attiecīgajās tabulās. Līdzekļu deficīts vai pārpalikums tiek aprēķināts automātiski. Dekorācijas etiķete ir šūnā pa labi. Šīs kolonnas šūnās ir noderīgi norādījumi par to, kā lietot šo darblapu. Bultiņa uz leju, lai sāktu darbu.","Dekorācijas*"]
["Ievadiet tabulā dekorāciju izmaksas, izņemot ziedu izmaksas, sākot no šūnas pa labi. Nākamais norādījums ir šūnā A11.","KATEGORIJA","PROGNOZĒTIE","FAKTISKIE","VIRS/ZEM"]
[null,"Sēdvietu lentes",{"v":0,"d":"0.00"},{"v":0,"d":"0.00"},{"$f":"'Dekor.-ziedi-dāvanas-ceļojums'!$C3-'Dekor.-ziedi-dāvanas-ceļojums'!$D3","v":{"v":0,"d":"0.00"}}]
[null,"Rotājums galda vidū",{"v":300,"d":"300.00"},{"v":320,"d":"320.00"},{"$f":"'Dekor.-ziedi-dāvanas-ceļojums'!$C4-'Dekor.-ziedi-dāvanas-ceļojums'!$D4","v":{"v":-20,"d":"-20.00 "}}]
[null,"Sveces",{"v":100,"d":"100.00"},{"v":75,"d":"75.00"},{"$f":"'Dekor.-ziedi-dāvanas-ceļojums'!$C5-'Dekor.-ziedi-dāvanas-ceļojums'!$D5","v":{"v":25,"d":"25.00"}}]
[null,"Apgaismojums",{"v":100,"d":"100.00"},{"v":75,"d":"75.00"},{"$f":"'Dekor.-ziedi-dāvanas-ceļojums'!$C6-'Dekor.-ziedi-dāvanas-ceļojums'!$D6","v":{"v":25,"d":"25.00"}}]
[null,"Baloni",{"v":200,"d":"200.00"},{"v":250,"d":"250.00"},{"$f":"'Dekor.-ziedi-dāvanas-ceļojums'!$C7-'Dekor.-ziedi-dāvanas-ceļojums'!$D7","v":{"v":-50,"d":"-50.00 "}}]
[null,"Dekorācijas kopā",{"$f":"SUBTOTAL(109,Dekorācijas[PROGNOZĒTIE])","v":{"v":700,"d":"700.00"}},{"$f":"SUBTOTAL(109,Dekorācijas[FAKTISKIE])","v":{"v":720,"d":"720.00"}},{"$f":"SUBTOTAL(109,Dekorācijas[VIRS/ZEM])","v":{"v":-20,"d":"-20.00 "}}]
[null,"*Izņemot ziedus"]
[]
["Ziedi etiķete ir šūnā pa labi.","Ziedi"]
["Ievadiet detalizētu informāciju ziedi tabulā, sākot no šūnas pa labi. Nākamais norādījums ir šūnā A20.","KATEGORIJA","PROGNOZĒTIE","FAKTISKIE","VIRS/ZEM"]
[null,"Pušķi",{"v":500,"d":"500.00"},{"v":450,"d":"450.00"},{"$f":"'Dekor.-ziedi-dāvanas-ceļojums'!$C13-'Dekor.-ziedi-dāvanas-ceļojums'!$D13","v":{"v":50,"d":"50.00"}}]
[null,"Piespraužamie ziedu rotājumi",{"v":0,"d":"0.00"},{"v":0,"d":"0.00"},{"$f":"'Dekor.-ziedi-dāvanas-ceļojums'!$C14-'Dekor.-ziedi-dāvanas-ceļojums'!$D14","v":{"v":0,"d":"0.00"}}]
[null,"Stiprināmie pušķi",{"v":0,"d":"0.00"},{"v":0,"d":"0.00"},{"$f":"'Dekor.-ziedi-dāvanas-ceļojums'!$C15-'Dekor.-ziedi-dāvanas-ceļojums'!$D15","v":{"v":0,"d":"0.00"}}]
[null,"Ceremonija",{"v":400,"d":"400.00"},{"v":400,"d":"400.00"},{"$f":"'Dekor.-ziedi-dāvanas-ceļojums'!$C16-'Dekor.-ziedi-dāvanas-ceļojums'!$D16","v":{"v":0,"d":"0.00"}}]
[null,"Pieņemšana",{"v":0,"d":"0.00"},{"v":0,"d":"0.00"},{"$f":"'Dekor.-ziedi-dāvanas-ceļojums'!$C17-'Dekor.-ziedi-dāvanas-ceļojums'!$D17","v":{"v":0,"d":"0.00"}}]
[null,"Ziedi kopā",{"$f":"SUBTOTAL(109,Ziedi[PROGNOZĒTIE])","v":{"v":900,"d":"900.00"}},{"$f":"SUBTOTAL(109,Ziedi[FAKTISKIE])","v":{"v":850,"d":"850.00"}},{"$f":"SUBTOTAL(109,Ziedi[VIRS/ZEM])","v":{"v":50,"d":"50.00"}}]
[]
["Dāvanu etiķete ir šūnā pa labi.","Dāvanas"]
["Ievadiet detalizētu informāciju dāvanas tabulā, sākot no šūnas pa labi. Nākamais norādījums ir šūnā A29.","KATEGORIJA","PROGNOZĒTIE","FAKTISKIE","VIRS/ZEM"]
[null,"Viesi",{"v":1000,"d":"1,000.00"},{"v":400,"d":"400.00"},{"$f":"'Dekor.-ziedi-dāvanas-ceļojums'!$C22-'Dekor.-ziedi-dāvanas-ceļojums'!$D22","v":{"v":600,"d":"600.00"}}]
[null,"Topošais laulātais 1",{"v":150,"d":"150.00"},{"v":200,"d":"200.00"},{"$f":"'Dekor.-ziedi-dāvanas-ceļojums'!$C23-'Dekor.-ziedi-dāvanas-ceļojums'!$D23","v":{"v":-50,"d":"-50.00 "}}]
[null,"Topošais laulātais 2",{"v":150,"d":"150.00"},{"v":200,"d":"200.00"},{"$f":"'Dekor.-ziedi-dāvanas-ceļojums'!$C24-'Dekor.-ziedi-dāvanas-ceļojums'!$D24","v":{"v":-50,"d":"-50.00 "}}]
[null,"Vecāki",{"v":25,"d":"25.00"},{"v":25,"d":"25.00"},{"$f":"'Dekor.-ziedi-dāvanas-ceļojums'!$C25-'Dekor.-ziedi-dāvanas-ceļojums'!$D25","v":{"v":0,"d":"0.00"}}]
[null,"Lasītāji / citi dalībnieki",{"v":20,"d":"20.00"},{"v":250,"d":"250.00"},{"$f":"'Dekor.-ziedi-dāvanas-ceļojums'!$C26-'Dekor.-ziedi-dāvanas-ceļojums'!$D26","v":{"v":-230,"d":"-230.00 "}}]
[null,"Dāvanas kopā",{"$f":"SUBTOTAL(109,Dāvanas[PROGNOZĒTIE])","v":{"v":1345,"d":"1,345.00"}},{"$f":"SUBTOTAL(109,Dāvanas[FAKTISKIE])","v":{"v":1075,"d":"1,075.00"}},{"$f":"SUBTOTAL(109,Dāvanas[VIRS/ZEM])","v":{"v":270,"d":"270.00"}}]
[]
["Transporta Ceļošana ir transports pa labi.","Ceļošana/transports"]
["Ievadiet detalizētu informāciju Ceļojums tabulā, sākot no šūnas pa labi. Nākamais norādījums ir šūnā A36.","KATEGORIJA","PROGNOZĒTIE","FAKTISKIE","VIRS/ZEM"]
[null,"Limuzīni/autobusi",{"v":100,"d":"100.00"},{"v":125,"d":"125.00"},{"$f":"'Dekor.-ziedi-dāvanas-ceļojums'!$C31-'Dekor.-ziedi-dāvanas-ceļojums'!$D31","v":{"v":-25,"d":"-25.00 "}}]
[null,"Autostāvvieta",{"v":0,"d":"0.00"},{"v":40,"d":"40.00"},{"$f":"'Dekor.-ziedi-dāvanas-ceļojums'!$C32-'Dekor.-ziedi-dāvanas-ceļojums'!$D32","v":{"v":-40,"d":"-40.00 "}}]
[null,"Taksometri",{"v":0,"d":"0.00"},{"v":0,"d":"0.00"},{"$f":"'Dekor.-ziedi-dāvanas-ceļojums'!$C33-'Dekor.-ziedi-dāvanas-ceļojums'!$D33","v":{"v":0,"d":"0.00"}}]
[null,"Ceļošana/transports kopā",{"$f":"SUBTOTAL(109,Ceļojums[PROGNOZĒTIE])","v":{"v":100,"d":"100.00"}},{"$f":"SUBTOTAL(109,Ceļojums[FAKTISKIE])","v":{"v":165,"d":"165.00"}},{"$f":"SUBTOTAL(109,Ceļojums[VIRS/ZEM])","v":{"v":-65,"d":"-65.00 "}}]
[]
["Citi izdevumi etiķete ir šūnā pa labi.","Citi izdevumi"]
["Tabulā Citi izdevumi, sākot ar šūnu pa labi, ievadiet detalizētu informāciju.","KATEGORIJA","PROGNOZĒTIE","FAKTISKIE","VIRS/ZEM"]
[null,"Oficiants",{"v":0,"d":"0.00"},{"v":0,"d":"0.00"},{"$f":"'Dekor.-ziedi-dāvanas-ceļojums'!$C38-'Dekor.-ziedi-dāvanas-ceļojums'!$D38","v":{"v":0,"d":"0.00"}}]
[null,"Baznīcas/ceremonijas norises vietas apmaksa",{"v":40,"d":"40.00"},{"v":55,"d":"55.00"},{"$f":"'Dekor.-ziedi-dāvanas-ceļojums'!$C39-'Dekor.-ziedi-dāvanas-ceļojums'!$D39","v":{"v":-15,"d":"-15.00 "}}]
[null,"Kāzu koordinators",{"v":0,"d":"0.00"},{"v":0,"d":"0.00"},{"$f":"'Dekor.-ziedi-dāvanas-ceļojums'!$C40-'Dekor.-ziedi-dāvanas-ceļojums'!$D40","v":{"v":0,"d":"0.00"}}]
[null,"Izmēģinājuma vakariņas",{"v":450,"d":"450.00"},{"v":450,"d":"450.00"},{"$f":"'Dekor.-ziedi-dāvanas-ceļojums'!$C41-'Dekor.-ziedi-dāvanas-ceļojums'!$D41","v":{"v":0,"d":"0.00"}}]
[null,"Saderināšanas ballīte",{"v":20,"d":"20.00"},{"v":50,"d":"50.00"},{"$f":"'Dekor.-ziedi-dāvanas-ceļojums'!$C42-'Dekor.-ziedi-dāvanas-ceļojums'!$D42","v":{"v":-30,"d":"-30.00 "}}]
[null,"Līgavas/līgavaiņa apdāvināšanas ballītes",{"v":30,"d":"30.00"},{"v":20,"d":"20.00"},{"$f":"'Dekor.-ziedi-dāvanas-ceļojums'!$C43-'Dekor.-ziedi-dāvanas-ceļojums'!$D43","v":{"v":10,"d":"10.00"}}]
[null,"Salonu apmeklējumi",{"v":45,"d":"45.00"},{"v":46,"d":"46.00"},{"$f":"'Dekor.-ziedi-dāvanas-ceļojums'!$C44-'Dekor.-ziedi-dāvanas-ceļojums'!$D44","v":{"v":-1,"d":"-1.00 "}}]
[null,"Vecpuišu/vecmeitu ballītes",{"v":0,"d":"0.00"},{"v":0,"d":"0.00"},{"$f":"'Dekor.-ziedi-dāvanas-ceļojums'!$C45-'Dekor.-ziedi-dāvanas-ceļojums'!$D45","v":{"v":0,"d":"0.00"}}]
[null,"Brančs",{"v":300,"d":"300.00"},{"v":400,"d":"400.00"},{"$f":"'Dekor.-ziedi-dāvanas-ceļojums'!$C46-'Dekor.-ziedi-dāvanas-ceļojums'!$D46","v":{"v":-100,"d":"-100.00 "}}]
[null,"Viesnīcu numuri",{"v":0,"d":"0.00"},{"v":0,"d":"0.00"},{"$f":"'Dekor.-ziedi-dāvanas-ceļojums'!$C47-'Dekor.-ziedi-dāvanas-ceļojums'!$D47","v":{"v":0,"d":"0.00"}}]
[null,"Citu izdevumu kopsumma",{"$f":"SUBTOTAL(109,Citi_izdevumi[PROGNOZĒTIE])","v":{"v":885,"d":"885.00"}},{"$f":"SUBTOTAL(109,Citi_izdevumi[FAKTISKIE])","v":{"v":1021,"d":"1,021.00"}},{"$f":"SUBTOTAL(109,Citi_izdevumi[VIRS/ZEM])","v":{"v":-136,"d":"-136.00 "}}]